bitfinex-derivatives/quotes_SOLF0:USTF0_20250514
["timestamp","ask_amount","ask_price","bid_price","bid_amount"]
[1747241315395,11.3781,175.75,175.55,3.7841]
[1747241316101,5.6919,175.67,175.62,5.693]
[1747241316298,26.43849432,175.77,175.58,26.43849432]
[1747241317099,5.6907,175.7,175.66,5.6918]
[1747241317898,20.27410844,175.78,175.59,16.27410844]
[1747241318402,5.6915,175.68,175.59,16.27410844]
[1747241318596,20.27410844,175.78,175.59,16.27410844]
[1747241319601,11.3768,175.77,175.59,16.27410844]
[1747241320102,11.3768,175.77,175.66,5.6916]
[1747241320503,11.3768,175.77,175.59,16.27410844]
[1747241320705,20.27410844,175.78,175.59,16.27410844]
[1747241321101,5.6907,175.7,175.59,16.27410844]
[1747241321303,20.27410844,175.78,175.59,16.27410844]
[1747241321909,5.6902,175.72,175.67,5.6916]
[1747241322206,5.6902,175.72,175.59,16.27410844]
[1747241322207,4.0,175.78,175.6,11.3875]
[1747241322507,5.6888,175.76,175.63,16.27410844]
[1747241322702,2.00417,175.79,175.64,5.6442]
[1747241323509,5.6891,175.75,175.71,5.6901]
[1747241323805,2.00417,175.79,175.64,5.6442]
[1747241324608,5.6889,175.76,175.72,5.6899]
[1747241324806,2.00417,175.79,175.64,5.6442]
[1747241325108,5.6881,175.78,175.74,5.6892]
[1747241325407,2.00417,175.79,175.64,17.029]
[1747241325706,2.00417,175.79,175.67,16.27410844]
[1747241326307,2.00417,175.79,175.78,5.688]
[1747241327110,15.3665,175.93,175.81,5.6868]
[1747241327314,15.3665,175.93,175.73,1.7737]
[1747241327506,5.6863,175.84,175.73,1.7737]
[1747241327809,15.3665,175.93,175.73,1.7737]
[1747241328009,5.6872,175.81,175.73,1.7737]
[1747241328509,16.27410844,175.86,175.72,3.7638]
[1747241329510,16.27410844,175.86,175.73,5.6896]
[1747241330007,16.27410844,175.86,175.72,7.5146]
[1747241330506,5.6884,175.77,175.72,7.5146]
[1747241330708,16.27410844,175.86,175.68,1.78]
[1747241331811,16.27410844,175.82,175.68,1.78]
[1747241332005,1.885,175.81,175.68,1.78]
[1747241332913,5.6889,175.76,175.71,5.6901]
[1747241333412,1.885,175.81,175.68,1.78]
[1747241333614,5.6891,175.75,175.71,5.6902]
[1747241333909,1.885,175.81,175.68,1.78]
[1747241334113,5.6892,175.75,175.68,1.78]
[1747241334511,5.6892,175.75,175.7,5.6906]
[1747241334814,5.6887,175.76,175.68,1.78]
[1747241335004,1.885,175.81,175.71,5.69]
[1747241335204,1.885,175.81,175.68,1.78]
[1747241335412,5.6891,175.75,175.68,1.78]
[1747241335814,1.885,175.81,175.68,1.78]
[1747241336014,1.885,175.81,175.65,1.8763]
[1747241336415,1.885,175.81,175.67,5.6913]
[1747241336714,1.885,175.81,175.65,1.8763]
[1747241336911,1.885,175.81,175.67,5.6916]
[1747241337116,5.6899,175.73,175.67,5.6916]
[1747241337317,5.6899,175.73,175.65,1.8763]
[1747241337615,5.6889,175.76,175.65,1.8763]
[1747241337820,1.885,175.81,175.65,1.8763]
[1747241338214,5.6888,175.76,175.65,1.8763]
[1747241338410,1.885,175.81,175.65,1.8763]
[1747241338917,5.6889,175.76,175.65,1.8763]
[1747241339112,1.885,175.81,175.65,1.8763]
[1747241340123,16.27410844,175.78,175.6,1.7904]
[1747241340313,16.27410844,175.74,175.55,3.8031]
[1747241340520,5.6925,175.65,175.55,3.8031]
[1747241340723,33.32410844,175.74,175.55,3.8031]
[1747241340919,33.32410844,175.74,175.6,5.6937]
[1747241341221,48.70090844,175.77,175.55,3.8031]
[1747241341518,65.74090844,175.77,175.55,3.8031]
[1747241341718,48.69090844,175.77,175.55,3.8031]
[1747241342020,16.27410844,175.71,175.55,3.8031]
[1747241342222,1.8773,175.7,175.55,3.8031]
[1747241342421,1.8773,175.7,175.55,1.9101]
[1747241342720,5.6929,175.64,175.58,5.6944]
[1747241342914,1.8773,175.7,175.58,5.6944]
[1747241343112,1.8773,175.7,175.55,1.9101]
[1747241344322,5.692,175.66,175.55,1.9101]
[1747241344523,1.8773,175.7,175.55,1.9101]
[1747241344821,1.8773,175.7,175.57,5.6947]
[1747241345017,1.8773,175.7,175.55,1.9101]
[1747241345422,1.8773,175.7,175.58,5.6944]
[1747241345721,1.8773,175.7,175.55,1.9101]
[1747241345918,16.27410844,175.67,175.55,1.9101]
[1747241346132,1.8773,175.7,175.49,1.8766]
[1747241346423,5.6927,175.64,175.52,16.27410844]
[1747241346622,20.27410844,175.69,175.52,16.27410844]
[1747241346917,5.693,175.63,175.58,5.6945]
[1747241347227,20.27410844,175.69,175.58,5.6945]
[1747241347413,20.27410844,175.69,175.49,3.7031]
[1747241348015,5.692,175.66,175.52,16.27410844]
[1747241348224,4.0,175.69,175.52,16.27410844]
[1747241349728,1.8773,175.7,175.56,16.27410844]
[1747241349918,16.27410844,175.77,175.57,5.6092]
[1747241350120,1.8505,175.76,175.57,5.6092]
[1747241350425,1.8505,175.76,175.64,5.6923]
[1747241350724,1.8505,175.76,175.57,5.6092]
[1747241350921,5.6922,175.65,175.6,5.6938]
[1747241351122,16.27410844,175.73,175.57,5.6092]
[1747241351523,16.27410844,175.73,175.6,5.6937]
[1747241351723,16.27410844,175.73,175.57,5.6092]
[1747241352229,1.8505,175.76,175.57,5.6092]
[1747241352527,5.6916,175.67,175.62,5.6931]
[1747241352727,1.8505,175.76,175.57,5.6092]
[1747241353025,5.6919,175.67,175.61,5.6933]
[1747241353223,1.8505,175.76,175.61,5.6933]
[1747241353426,1.8505,175.76,175.57,5.6092]
[1747241353627,5.6921,175.66,175.57,5.6092]
[1747241354022,5.6912,175.69,175.63,5.6926]
[1747241354219,1.8505,175.76,175.57,5.6092]
[1747241354726,1.8505,175.76,175.57,21.88330844]
[1747241355129,5.6912,175.69,175.64,5.6923]
[1747241355428,1.8505,175.76,175.57,21.88330844]
[1747241355819,16.27410844,175.73,175.57,5.6092]
[1747241356626,5.6908,175.7,175.66,5.6919]
[1747241356825,5.6908,175.7,175.57,5.6092]
[1747241356826,1.8505,175.76,175.58,16.27410844]
[1747241357931,11.3728,175.84,175.62,16.27410844]
[1747241358227,5.6898,175.73,175.69,5.6907]
[1747241358427,1.7769,175.83,175.62,16.27410844]
[1747241358930,11.3735,175.82,175.62,16.27410844]
[1747241359126,1.7769,175.83,175.62,16.27410844]
[1747241359329,16.27410844,175.78,175.58,16.27410844]
[1747241359631,16.27410844,175.74,175.58,16.27410844]
[1747241359830,1.8777,175.73,175.64,5.6925]
[1747241360231,1.8777,175.73,175.57,5.6092]
[1747241360433,16.27410844,175.7,175.5,16.27410844]
[1747241360637,16.27410844,175.66,175.51,5.6729]
[1747241360823,5.6946,175.58,175.53,5.696]
[1747241361235,1.8777,175.65,175.51,5.6729]
[1747241361529,5.6936,175.61,175.51,5.6729]
[1747241362032,1.8777,175.65,175.51,5.6729]
[1747241362533,5.6932,175.62,175.51,5.6729]
[1747241362732,16.27410844,175.7,175.51,5.6729]
[1747241363836,16.27410844,175.77,175.54,16.27410844]
[1747241364230,5.6915,175.68,175.54,16.27410844]
[1747241364429,11.3777,175.76,175.54,16.27410844]
[1747241364734,16.27410844,175.73,175.62,5.6932]
[1747241364935,16.27410844,175.73,175.54,16.27410844]
[1747241365826,16.27410844,175.77,175.54,16.27410844]
[1747241366028,16.27410844,175.73,175.54,16.27410844]
[1747241366331,16.27410844,175.73,175.51,5.6729]
[1747241366535,16.27410844,175.73,175.58,5.6942]
[1747241366738,16.27410844,175.73,175.51,5.6729]
[1747241367631,5.6923,175.65,175.61,5.6933]
[1747241367831,11.3803,175.72,175.51,5.6729]
[1747241368232,5.6932,175.63,175.51,5.6729]
[1747241368432,1.8026,175.71,175.51,5.6729]
[1747241368635,5.6938,175.61,175.51,5.6729]
[1747241369037,16.27410844,175.69,175.51,5.6729]
[1747241369538,16.27410844,175.69,175.58,5.6944]
[1747241370037,5.6928,175.64,175.59,5.694]
[1747241370238,16.27410844,175.69,175.51,5.6729]
[1747241372037,5.6939,175.6,175.51,5.6729]
[1747241372232,16.27410844,175.69,175.51,5.6729]
[1747241372739,5.6944,175.59,175.51,5.6729]
[1747241372940,16.27410844,175.69,175.51,5.6729]
[1747241373240,5.6941,175.6,175.56,5.6951]
[1747241373733,16.27410844,175.69,175.55,5.6952]
[1747241373932,16.27410844,175.69,175.51,5.6729]
[1747241374335,5.6931,175.63,175.51,5.6729]
[1747241374542,16.27410844,175.69,175.51,5.6729]
[1747241374942,5.6934,175.62,175.57,5.6946]
[1747241375143,16.27410844,175.69,175.51,5.6729]
[1747241375543,5.6932,175.62,175.58,5.6944]
[1747241375840,16.27410844,175.69,175.51,5.6729]
[1747241376039,11.3827,175.68,175.51,5.6729]
[1747241376539,16.27410844,175.61,175.45,82.41339363]
[1747241376747,1.8267,175.6,175.46,3.6616]
[1747241377742,5.6974,175.5,175.46,3.6616]
[1747241378042,16.27410844,175.57,175.46,3.6616]
[1747241378343,5.6967,175.52,175.47,5.698]
[1747241378543,16.27410844,175.57,175.46,3.6616]
[1747241379346,5.697,175.51,175.46,3.6616]
[1747241379546,16.27410844,175.57,175.46,1.8498]
[1747241379741,16.27410844,175.57,175.38,1.7687]
[1747241379944,5.6979,175.48,175.43,5.6994]
[1747241380341,5.6981,175.47,175.43,5.6994]
[1747241380645,16.27410844,175.57,175.38,5.4725]
[1747241381044,5.6982,175.47,175.42,5.6995]
[1747241381243,5.6982,175.47,175.38,5.4725]
[1747241381545,5.6982,175.47,175.42,5.6994]
[1747241381743,16.27410844,175.53,175.38,5.4725]
[1747241382148,16.27410844,175.56,175.38,5.4725]
[1747241382344,5.6972,175.5,175.38,21.74660844]
[1747241382546,16.27410844,175.56,175.38,21.74660844]
[1747241382848,5.6976,175.49,175.44,5.699]
[1747241383145,16.27410844,175.56,175.38,21.74660844]
[1747241383344,16.27410844,175.56,175.45,5.6987]
[1747241383543,5.6973,175.5,175.38,21.74660844]
[1747241383847,16.27410844,175.56,175.44,5.6987]
[1747241384247,16.27410844,175.56,175.38,21.74660844]
[1747241384451,5.6977,175.49,175.44,5.699]
[1747241384951,16.27410844,175.56,175.43,5.6993]
[1747241385150,27.66510844,175.56,175.38,5.4725]
[1747241385341,16.27410844,175.52,175.39,5.7007]
[1747241385544,5.6982,175.47,175.38,5.4725]
[1747241385748,1.9235,175.51,175.38,5.4725]
[1747241386145,5.6984,175.47,175.38,5.4725]
[1747241386345,1.9235,175.51,175.38,5.4725]
[1747241388350,5.6993,175.44,175.38,5.4725]
[1747241388651,1.9235,175.51,175.38,5.4725]
[1747241389361,16.27410844,175.48,175.29,16.27410844]
[1747241389652,5.6997,175.42,175.32,1.954]
[1747241389952,5.6997,175.42,175.38,5.701]
[1747241390148,5.6997,175.42,175.32,1.954]
[1747241390345,5.7002,175.41,175.32,1.954]
[1747241390542,16.27410844,175.48,175.32,1.954]
[1747241390743,16.27410844,175.44,175.32,1.954]
[1747241390953,5.7014,175.37,175.32,1.954]
[1747241391147,1.7801,175.43,175.3,1.8728]
[1747241391348,16.27410844,175.4,175.29,5.7039]
[1747241391549,16.27410844,175.4,175.2,16.27410844]
[1747241392152,16.27410844,175.4,175.18,11.4144]
[1747241392353,16.27410844,175.4,175.22,16.27410844]
[1747241392550,16.27410844,175.4,175.18,11.4144]
[1747241392751,16.27410844,175.4,175.18,27.68850844]
[1747241392952,5.7034,175.31,175.26,5.7048]
[1747241393148,16.27410844,175.4,175.18,11.4144]
[1747241393355,16.27410844,175.4,175.19,16.27410844]
[1747241393555,5.7036,175.31,175.26,5.7049]
[1747241393751,16.27410844,175.4,175.19,16.27410844]
[1747241394656,5.7036,175.31,175.25,5.705]
[1747241394852,16.27410844,175.36,175.16,5.8188]
[1747241395155,16.27410844,175.32,175.19,5.7071]
[1747241395354,16.27410844,175.32,175.16,5.8188]
[1747241396358,5.7065,175.22,175.16,1.9418]
[1747241396558,16.27410844,175.32,175.1,3.6273]
[1747241396559,16.27410844,175.28,175.1,3.6273]
[1747241396749,16.38050658,175.16,175.09,6.50048172]
[1747241396957,16.38050658,175.23,175.09,8.172e-05]
[1747241397157,16.38050658,175.13,175.09,8.172e-05]
[1747241397357,16.38050658,175.14,174.94,16.38050658]
[1747241397858,16.38050658,175.18,174.98,16.38050658]
[1747241398057,16.38050658,175.18,174.9,18.23720658]
[1747241398058,16.38050658,175.18,174.99,3.552]
[1747241398260,16.38050658,175.18,175.0,1.7791]
[1747241398560,16.38413817,175.23,175.01,16.38413817]
[1747241398961,16.37668763,175.24,175.03,16.37668763]
[1747241399155,16.37631763,175.23,175.03,16.37631763]
[1747241399458,16.38031214,175.24,175.02,16.38031214]
[1747241399658,16.38031214,175.27,175.03,3.6295]
[1747241399852,16.38031214,175.23,175.03,3.6295]
[1747241400561,16.38031214,175.32,175.06,16.38031214]
[1747241400762,16.38031214,175.27,175.07,1.945]
[1747241401270,26.6095128,175.24,175.07,1.945]
[1747241401560,26.61171765,175.23,175.07,1.945]
[1747241401751,26.59999092,175.27,175.07,28.54499092]
[1747241401956,0.99400171,175.28,175.07,28.54499092]
[1747241401957,0.99400171,175.28,175.08,26.59474217]
[1747241402158,26.59474217,175.33,175.12,26.59474217]
[1747241402355,26.59474217,175.37,175.16,26.59474217]
[1747241402560,26.59474217,175.4,175.2,26.59474217]
[1747241402760,5.7015,175.37,175.2,26.59474217]
[1747241402955,26.59474217,175.41,175.2,26.59474217]
[1747241403155,5.7006,175.4,175.34,5.7022]
[1747241403352,5.7006,175.4,175.24,26.59474217]
[1747241403553,161.12456498,175.48,175.25,3.7272]
[1747241403755,26.59474217,175.44,175.25,3.7272]
[1747241403952,26.59474217,175.36,175.17,1.9324]
[1747241404155,26.59474217,175.36,175.27,5.7044]
[1747241404463,26.59474217,175.4,175.2,26.59474217]
[1747241404663,26.59474217,175.4,175.24,5.7053]
[1747241404956,26.59474217,175.4,175.18,30.36674217]
[1747241405158,5.7007,175.39,175.22,26.59474217]
[1747241405463,26.59474217,175.44,175.22,26.59474217]
[1747241405760,26.59474217,175.44,175.18,3.772]
[1747241405963,26.59474217,175.44,175.23,26.59474217]
[1747241406260,5.7012,175.38,175.23,26.59474217]
[1747241406461,26.59474217,175.44,175.23,26.59474217]
[1747241406865,134.52982281,175.48,175.27,26.59474217]
[1747241407063,134.52982281,175.48,175.28,5.6327]
[1747241407261,5.7013,175.37,175.31,5.7032]
[1747241407460,26.59474217,175.45,175.28,5.6327]
[1747241407866,26.59474217,175.45,175.31,5.7031]
[1747241408163,134.52982281,175.48,175.28,5.6327]
[1747241408356,5.7003,175.41,175.28,5.6327]
[1747241408560,134.52982281,175.48,175.28,5.6327]
[1747241408758,26.59474217,175.46,175.28,5.6327]
[1747241409367,26.59474217,175.46,175.32,5.7027]
[1747241409566,26.59474217,175.46,175.28,5.6327]
[1747241409966,5.7009,175.39,175.33,5.7026]
[1747241410168,26.59474217,175.46,175.28,5.6327]
[1747241411468,151.62982281,175.48,175.28,5.6327]
[1747241411669,26.59474217,175.42,175.28,5.6327]
[1747241412770,26.59474217,175.42,175.29,5.7039]
[1747241412967,26.59474217,175.42,175.28,5.6327]
[1747241414770,26.59474217,175.42,175.29,5.7039]
[1747241414963,26.59474217,175.42,175.28,5.6327]
[1747241415872,26.59474217,175.42,175.29,5.7039]
[1747241416067,26.59474217,175.42,175.28,3.7048]
[1747241416369,26.59474217,175.42,175.28,1.8201]
[1747241416370,5.7029,175.33,175.28,1.8201]
[1747241416569,26.59474217,175.42,175.28,1.8201]
[1747241417069,5.7024,175.34,175.28,7.5241]
[1747241417373,26.59474217,175.42,175.28,7.5241]
[1747241417574,5.7026,175.34,175.28,7.5241]
[1747241417874,26.59474217,175.42,175.28,1.8201]
[1747241418276,26.59474217,175.42,175.32,5.7028]
[1747241418476,26.59474217,175.42,175.28,1.8201]
[1747241418678,5.701,175.39,175.28,1.8201]
[1747241418877,30.59474217,175.46,175.28,1.8201]
[1747241419279,30.59474217,175.46,175.31,5.703]
[1747241420379,26.59474217,175.42,175.28,1.8201]
[1747241420679,26.59474217,175.42,175.24,1.7785]
[1747241420975,5.7027,175.33,175.24,3.6323]
[1747241421280,26.59474217,175.42,175.27,5.7043]
[1747241422080,5.7032,175.32,175.27,5.7043]
[1747241422382,26.59474217,175.42,175.24,3.6323]
[1747241422977,26.59474217,175.42,175.26,5.7048]
[1747241423178,26.59474217,175.42,175.24,3.6323]
[1747241423579,5.7028,175.33,175.24,3.6323]
[1747241423781,26.59474217,175.42,175.24,3.6323]
[1747241423981,26.59474217,175.42,175.3,5.7036]
[1747241424284,26.59474217,175.42,175.25,1.8894]
[1747241424478,26.59474217,175.42,175.27,5.7046]
[1747241424880,26.59474217,175.42,175.25,1.8894]
[1747241425588,26.59474217,175.42,175.31,5.7033]
[1747241425790,5.7019,175.36,175.25,1.8894]
[1747241426085,5.7019,175.36,175.31,5.7031]
[1747241426283,5.7014,175.37,175.25,1.8894]
[1747241426489,26.59474217,175.42,175.25,1.8894]
[1747241426681,26.59474217,175.42,175.3,5.7035]
[1747241426984,5.7026,175.33,175.25,1.8894]
[1747241427586,5.7036,175.3,175.25,1.8894]
[1747241427781,5.7036,175.3,175.27,5.7046]
[1747241427983,26.59474217,175.38,175.24,3.6323]
[1747241428681,26.59474217,175.38,175.13,11.4179]
[1747241428977,26.59474217,175.38,175.15,5.501]
[1747241429280,5.7044,175.28,175.16,16.35288819]
[1747241429476,16.35288819,175.36,175.16,16.35288819]
[1747241429886,48.85328819,175.41,175.27,5.7045]
[1747241430084,31.75328819,175.41,175.2,16.35288819]
[1747241430279,31.75328819,175.41,175.24,16.35288819]
[1747241430476,31.75328819,175.41,175.25,5.4896]
[1747241431283,11.4009,175.4,175.25,3.6813]
[1747241431481,16.35288819,175.37,175.24,5.7053]
[1747241431677,16.35288819,175.37,175.19,1.8083]
[1747241432085,16.35288819,175.37,175.22,5.706]
[1747241432278,16.35288819,175.37,175.19,1.8083]
[1747241432487,5.7045,175.28,175.19,1.8083]
[1747241432792,11.4009,175.4,175.19,1.8083]
[1747241433090,11.4009,175.4,175.29,5.7039]
[1747241433287,11.4009,175.4,175.21,16.35288819]
[1747241433488,5.7033,175.31,175.21,16.35288819]
[1747241433682,11.4009,175.4,175.19,1.8083]
[1747241434081,11.4009,175.4,175.27,5.7045]
[1747241434388,11.4015,175.39,175.19,1.8083]
[1747241434588,11.4015,175.39,175.25,5.705]
[1747241434886,16.35288819,175.37,175.19,1.8083]
[1747241435294,16.35288819,175.37,175.23,5.7057]
[1747241435586,16.35288819,175.33,175.19,1.8083]
[1747241435788,16.35288819,175.33,175.21,5.7063]
[1747241436590,5.7051,175.26,175.21,5.7063]
[1747241436790,11.4062,175.32,175.11,16.35288819]
[1747241436990,11.4062,175.32,175.15,3.7118]
[1747241437186,4.0,175.35,175.16,1.7983]
[1747241437789,5.7037,175.3,175.25,5.705]
[1747241438091,16.35288819,175.41,175.19,16.35288819]
[1747241438391,16.35288819,175.41,175.23,16.35288819]
[1747241438584,16.35288819,175.41,175.24,5.5716]
[1747241439289,5.7022,175.35,175.31,5.7031]
[1747241439495,16.35288819,175.41,175.24,5.5716]
[1747241439895,5.7022,175.35,175.24,5.5716]
[1747241440298,16.35288819,175.41,175.24,5.5716]
[1747241440497,5.702,175.36,175.32,5.7028]
[1747241440699,4.0,175.43,175.26,16.35288819]
[1747241441093,11.3965,175.47,175.26,16.35288819]
[1747241441400,16.35288819,175.54,175.34,16.35288819]
[1747241441595,16.35288819,175.54,175.38,16.35288819]
[1747241441801,4.0,175.56,175.38,16.35288819]
[1747241441994,4.0,175.56,175.42,16.35288819]
[1747241442201,16.35288819,175.62,175.42,16.35288819]
[1747241442496,5.696,175.54,175.49,5.6972]
[1747241442696,16.35288819,175.62,175.42,16.35288819]
[1747241443297,16.35288819,175.63,175.42,16.35288819]
[1747241443600,5.6959,175.54,175.42,16.35288819]
[1747241443799,16.35288819,175.63,175.42,16.35288819]
[1747241444100,5.6964,175.53,175.48,5.6975]
[1747241444303,16.35288819,175.63,175.48,5.6975]
[1747241444595,16.35288819,175.63,175.42,16.35288819]
[1747241445201,16.35288819,175.63,175.41,16.35288819]
[1747241445405,26.49572638,175.62,175.42,26.49572638]
[1747241445700,5.6968,175.51,175.45,5.6987]
[1747241445901,26.49572638,175.58,175.42,26.49572638]
[1747241446593,26.49572638,175.62,175.42,26.49572638]
[1747241447500,4.0,175.65,175.46,26.49572638]
[1747241447698,4.0,175.65,175.47,3.8096]
[1747241448993,26.49572638,175.64,175.47,3.8096]
[1747241449302,5.6942,175.59,175.47,3.8096]
[1747241449500,4.0,175.65,175.48,1.8501]
[1747241449700,26.49572638,175.64,175.48,1.8501]
[1747241450102,26.49572638,175.64,175.5,5.6971]
[1747241450904,26.49572638,175.64,175.49,5.6974]
[1747241451202,26.49572638,175.6,175.47,3.8096]
[1747241452002,26.49572638,175.6,175.49,5.6973]
[1747241452304,26.49572638,175.6,175.47,3.8096]
[1747241452497,26.49572638,175.64,175.47,3.8096]
[1747241453204,26.49572638,175.64,175.48,5.6977]
[1747241453398,26.49572638,175.64,175.47,3.8096]
[1747241453906,140.34274461,175.66,175.42,1.8185]
[1747241453907,26.49572638,175.6,175.42,1.8185]
[1747241454204,26.49572638,175.6,175.42,5.4132]
[1747241454405,26.49572638,175.6,175.46,5.6982]
[1747241454600,26.49572638,175.6,175.42,5.4132]
[1747241455508,26.49572638,175.6,175.45,5.6985]
[1747241455708,5.6977,175.49,175.42,5.4132]
[1747241455909,26.49572638,175.6,175.42,5.4132]
[1747241456210,4.0,175.59,175.43,5.6993]
[1747241456603,26.49572638,175.56,175.42,5.4132]
[1747241456810,5.6978,175.48,175.42,3.5947]
[1747241457009,26.49572638,175.56,175.42,3.5947]
[1747241457208,26.49572638,175.56,175.43,5.6993]
[1747241457407,26.49572638,175.56,175.42,3.5947]
[1747241457712,26.49572638,175.56,175.42,1.7967]
[1747241458404,4.0,175.59,175.42,1.7967]
[1747241458610,4.0,175.59,175.43,1.943]
[1747241459213,5.6967,175.52,175.43,1.943]
[1747241459711,5.6967,175.52,175.48,5.6976]
[1747241459911,5.6968,175.51,175.43,1.943]
[1747241460311,11.3871,175.62,175.45,26.49572638]
[1747241460511,26.49572638,175.64,175.45,26.49572638]
[1747241462008,11.3859,175.63,175.43,1.943]
[1747241462214,26.49572638,175.6,175.43,1.943]
[1747241462409,26.49572638,175.56,175.42,1.7967]
[1747241463115,5.6978,175.48,175.43,5.6991]
[1747241463314,5.6978,175.48,175.42,1.7967]
[1747241463816,26.49572638,175.56,175.43,5.6993]
[1747241464016,26.49572638,175.56,175.42,1.7967]
[1747241464216,5.6978,175.48,175.44,5.699]
[1747241464615,26.49572638,175.56,175.42,1.7967]
[1747241464812,5.6972,175.5,175.46,5.6981]
[1747241465013,26.49572638,175.6,175.42,1.7967]
[1747241465412,5.697,175.51,175.47,5.6979]
[1747241465818,26.49572638,175.6,175.47,5.6979]
[1747241466015,26.49572638,175.6,175.46,5.6983]
[1747241466317,26.49572638,175.6,175.42,1.7967]
[1747241466618,5.6967,175.52,175.42,1.7967]
[1747241466816,26.49572638,175.6,175.42,1.7967]
[1747241467117,5.6969,175.51,175.46,5.6981]
[1747241467315,11.3884,175.59,175.46,5.6981]
[1747241467516,11.3884,175.59,175.42,1.7967]
[1747241468019,26.49572638,175.6,175.42,1.7967]
[1747241468520,37.88402638,175.6,175.42,1.7967]
[1747241468817,37.88402638,175.6,175.44,5.6988]
[1747241469014,37.88402638,175.6,175.42,1.7967]
[1747241469418,5.6974,175.5,175.45,5.6985]
[1747241469618,37.88402638,175.6,175.45,5.6985]
[1747241470020,11.3885,175.59,175.42,1.7967]
[1747241470224,43.59572638,175.6,175.42,1.7967]
[1747241470419,26.49572638,175.56,175.42,1.7967]
[1747241470725,5.698,175.48,175.43,5.6993]
[1747241471617,11.3912,175.55,175.39,1.9454]
[1747241471921,26.49572638,175.52,175.38,1.8678]
[1747241472112,5.7003,175.41,175.33,3.6876]
[1747241472411,26.49572638,175.52,175.33,3.6876]
[1747241472616,5.7004,175.4,175.36,5.7016]
[1747241472817,11.3938,175.51,175.36,5.7016]
[1747241473121,26.49572638,175.52,175.33,3.6876]
[1747241473424,11.3943,175.5,175.33,3.6876]
[1747241473723,5.7006,175.4,175.35,5.7019]
[1747241474222,5.7013,175.37,175.33,9.3901]
[1747241474415,26.49572638,175.48,175.31,1.7711]
[1747241474620,26.49572638,175.44,175.26,3.7326]
[1747241475120,26.49572638,175.44,175.26,30.22832638]
[1747241475515,5.7022,175.35,175.3,5.7034]
[1747241475717,26.49572638,175.44,175.26,30.22832638]
[1747241475911,26.49572638,175.44,175.26,3.7326]
[1747241476321,5.7029,175.33,175.28,5.7042]
[1747241476723,26.49572638,175.4,175.22,26.49572638]
[1747241476921,5.7024,175.34,175.22,28.42972638]
[1747241477526,5.7024,175.34,175.28,5.704]
[1747241477827,11.3988,175.43,175.22,28.42972638]
[1747241478028,11.3988,175.43,175.26,26.49572638]
[1747241479027,11.3988,175.43,175.3,5.7034]
[1747241479226,11.3988,175.43,175.26,26.49572638]
[1747241479429,11.3988,175.43,175.22,28.42972638]
[1747241480026,11.3988,175.43,175.3,5.7035]
[1747241480227,26.49572638,175.44,175.26,26.49572638]
[1747241480627,5.7013,175.38,175.26,26.49572638]
[1747241480831,4.0,175.46,175.3,26.49572638]
[1747241481127,5.7008,175.39,175.31,5.5731]
[1747241481331,4.0,175.46,175.31,5.5731]
[1747241481736,5.701,175.38,175.31,5.5731]
[1747241481932,4.0,175.46,175.31,5.5731]
[1747241482630,21.1,175.46,175.31,5.5731]
[1747241482829,17.1,175.44,175.29,5.7036]
[1747241483025,17.1,175.44,175.25,26.49572638]
[1747241483933,26.49572638,175.41,175.21,32.06882638]
[1747241484436,5.7024,175.34,175.21,32.06882638]
[1747241484735,26.49572638,175.41,175.21,32.06882638]
[1747241484937,5.7018,175.36,175.32,5.7029]
[1747241485235,11.3977,175.45,175.25,26.49572638]
[1747241485436,5.7013,175.38,175.25,26.49572638]
[1747241485628,11.3977,175.45,175.25,26.49572638]
[1747241485834,4.0,175.46,175.29,26.49572638]
[1747241486035,37.89002638,175.5,175.3,5.5524]
[1747241486336,11.395,175.49,175.3,5.5524]
[1747241486532,5.7007,175.4,175.3,5.5524]
[1747241486737,11.395,175.49,175.3,5.5524]
[1747241487235,11.3957,175.48,175.3,5.5524]
[1747241487439,34.23,175.48,175.3,5.5524]